Cogmind - Beta 15 @@@ ROGUE MODE // 2025.09.08 @ 23:13:56 Player: hanna Result: Self-destructed Performance ------------- Evolutions (2) 1000 Regions Visited (3) 600 Robots Destroyed (38) 190 Value Destroyed (1048) 1048 Prototype IDs (0) 0 Alien Tech Used (0) 0 Bonus (0) 0 TOTAL SCORE: 2838 Bonus ------- None Cogmind --------- Core Integrity 167/550 Matter 10/300 Energy 300/300 System Corruption 0% Temperature Cool (34) Movement Treading (160) Location -8/Materials Parts ------- > --- POWER (2) -------- (None) > --- PROPULSION (2) --- Light Treads > --- UTILITY (5) ------ Small Storage Unit Compact Battery > --- WEAPON (2) ------- Mini Grenade Launcher > --- INVENTORY (8) ---- Light Treads Light Treads Light Treads Mini Grenade Launcher Peak State ------------ > --- POWER ------------ Reinforced Ion Engine > --- PROPULSION ------- Light Treads Light Treads > --- UTILITY ---------- Small Storage Unit Light Armor Plating Improved Light Armor Plating > --- WEAPON ----------- High-powered Shotgun High-powered Shotgun > --- INVENTORY -------- Light Treads Pulse Rifle Pulse Rifle Rocket Launcher Mini Grenade Launcher Mini Grenade Launcher [Rating: 16] Favorites ----------- Power Reinforced Ion Engine Engine Reinforced Ion Engine Propulsion Light Treads Treads Light Treads Utility Small Storage Unit Device Heat Sink Storage Small Storage Unit Protection Improved Light Armor Plating Weapon High-powered Shotgun Energy Gun Small Laser Ballistic Gun High-powered Shotgun Launcher Mini Grenade Launcher Build | -11 -10 -9 -8 ------- Run | Yrd Mat Mat Mat Slots Evolved 4 | . . 2 2 Power 1 | . . 1 . Propulsion . | . . . . Utility 3 | . . 1 2 Weapon . | . . . . Parts Attached 23 | 5 2 8 8 Power 3 | 1 . 1 1 Engine 3 | 1 . 1 1 Core . | . . . . Reactor . | . . . . Propulsion 6 | 2 . . 4 Treads 6 | 2 . . 4 Leg . | . . . . Wheel . | . . . . Hover . | . . . . Flight . | . . . . Utility 5 | 1 . 2 2 Device 1 | . . . 1 Storage 2 | 1 . . 1 Processor . | . . . . Hackware . | . . . . Protection 2 | . . 2 . Artifact . | . . . . Weapon 9 | 1 2 5 1 Energy Gun 3 | 1 . 2 . Energy Cannon . | . . . . Ballistic Gun 3 | . . 2 1 Ballistic Cannon . | . . . . Launcher 3 | . 2 1 . Special Weapon . | . . . . Impact Weapon . | . . . . Slashing Weapon . | . . . . Piercing Weapon . | . . . . Special Melee Weapon . | . . . . Unidentified Prototypes . | . . . . Parts Lost 11 | . . 1 10 Power 3 | . . 1 2 Propulsion 2 | . . . 2 Utility 3 | . . . 3 Weapon 3 | . . . 3 Highest Loss Streak 5 | . . 1 5 To Critical Strikes . | . . . . Average Backups 4 | 1 1 2 5 Power . | . . . . Propulsion 1 | . . 1 1 Utility . | . . . . Weapon 2 | . . 1 3 Tool/Special . | . . . . Unused Backups 3 | . 1 1 1 Power . | . . . . Propulsion 2 | . 1 . 1 Utility . | . . . . Weapon 1 | . . 1 . Tool/Special . | . . . . Average Slot Usage (%) 69 | . 82 75 65 Engine 10 | . 14 14 8 Treads 19 | . 28 22 17 Device 1 | . . . 2 Storage 12 | . 14 11 12 Protection 6 | . . 8 6 Ballistic Gun 9 | . . 4 13 Launcher 8 | . 23 14 4 Peak Build Rating 16 | 5 8 16 16 Average Rating 12 | 3 7 10 14 On Entrance 7 | . 5 8 16 Naked Turns . | . . . . Heaviest Build 27 | 9 10 27 27 Greatest Support 40 | 40 40 40 40 Greatest Overweight (x) 1 | . . . 1 Average Overweight (x) . | . . . . Largest Inventory Capacity 8 | 8 8 8 8 Average Capacity 7 | 6 8 8 8 Most Carried 8 | 4 3 7 8 Average Carried 4 | 1 1 2 5 Final Capacity 8 | 8 8 8 8 Final Carried 6 | 1 2 6 4 Class Distribution -------------------- 100% | Mutant Dominant Class ---------------- Mutant | -10/Materials Mutant | -9/Materials Mutant | -8/Materials Resources | -11 -10 -9 -8 ----------- Run | Yrd Mat Mat Mat Matter Collected 760 | 175 43 101 441 Remotely . | . . . . Salvage Created 909 | . 60 223 626 Parts 59 | . 6 12 41 Haulers Intercepted 1 | . 1 . . Recyclers Shooed 1 | . 1 . . Parts Field Recycled . | . . . . Retrieved Matter . | . . . . Parts Self-Destructed . | . . . . Prevented . | . . . . Kills | -11 -10 -9 -8 ------- Run | Yrd Mat Mat Mat Combat Hostiles Destroyed 31 | . 1 11 19 Guns 17 | . . . 17 AOE 14 | . 1 11 2 Classes Destroyed 10 | . 3 4 3 Worker 1 | . . . 1 Builder 2 | . . 1 1 Tunneler 2 | . 1 . 1 Hauler 1 | . 1 . . Mechanic 1 | . . . 1 Swarmer 10 | . . 4 6 Grunt 10 | . 1 5 4 Brawler 1 | . . 1 . Sentry 9 | . . 1 8 Hunter 1 | . . . 1 Best Kill Streak 6 | . 2 4 6 Combat Bots Only 5 | . 1 4 5 Max Kills in Single Turn 4 | . 2 4 3 Gunslinging 1 | . . . 1 Exploded 4 | . 1 4 1 Melee . | . . . . Uniques/NPCs Destroyed . | . . . . Combat | -11 -10 -9 -8 -------- Run | Yrd Mat Mat Mat Hostile Shots Fired 208 | . 2 25 181 Missed 59 | . . 9 50 Hits 149 | . 2 16 131 Projectile 149 | . 2 16 131 Critical Strikes 6 | . . 1 5 Damage Taken 2054 | . 31 305 1718 Core 426 | . . 43 383 Absorbed by Shields . | . . . . Core Remaining (%) 96 | 100 100 89 . Volleys Fired 63 | . 3 10 50 Largest 2 | . 2 2 2 Hottest 60 | . 60 60 60 Shots Fired 110 | . 6 15 89 Gun 80 | . . . 80 Cannon . | . . . . Launcher 30 | . 6 15 9 Special . | . . . . Kinetic 80 | . . . 80 Thermal . | . . . . Explosive 30 | . 6 15 9 Electromagnetic . | . . . . Robot Hit Streak 14 | . 1 3 14 Robot Miss Streak 5 | . 2 4 5 Penetration Max . | . . . . Secondary Targets 4 | . . . 4 Max Gunslinging Chain 1 | . . . 1 Shots Hit Robots 79 | . 1 8 70 Core Hits 70 | . 5 20 45 Critical Kills . | . . . . Critical Parts Destroyed . | . . . . Critical Strikes . | . . . . Melee Attacks . | . . . . Impact . | . . . . Slashing . | . . . . Piercing . | . . . . Sneak Attacks . | . . . . Combat Hostiles . | . . . . Follow-up Attacks . | . . . . Damage Inflicted 2872 | . 197 781 1894 Guns 1307 | . . . 1307 Cannons . | . . . . Explosions 1565 | . 197 781 587 Melee . | . . . . Ramming . | . . . . Kinetic 1307 | . . . 1307 Thermal . | . . . . Explosive 1565 | . 197 781 587 Electromagnetic . | . . . . Impact . | . . . . Slashing . | . . . . Piercing . | . . . . Highest Corruption . | . . . . Average Corruption . | . . . . Corruption Purged . | . . . . Corruption Blocked . | . . . . Overload Shots . | . . . . Overflow Damage 35 | . 3 14 18 Projectiles . | . . . . Explosions 35 | . 3 14 18 Melee . | . . . . Knockbacks . | . . . . Impact . | . . . . Kinetic . | . . . . Secondary . | . . . . Self-Inflicted Damage 265 | . 11 137 117 Shots 8 | . 1 3 4 Rammed . | . . . . Targets Rammed . | . . . . Kicked . | . . . . Crushed . | . . . . Highest Temperature 68 | . . 27 68 Average Temperature 13 | . . 12 14 Received Heat Transfer 591 | . 12 75 504 Siege Activations . | . . . . Martial Activations . | . . . . Shielding Activations . | . . . . Robots Disrupted . | . . . . Combat Hostiles . | . . . . Robots Corrupted . | . . . . Combat Hostiles . | . . . . Parts Fried . | . . . . Impact Corruptions . | . . . . Robots Melted . | . . . . Combat Hostiles . | . . . . Parts Melted . | . . . . Heat Transferred . | . . . . Parts Sabotaged . | . . . . Parts Stolen . | . . . . Parts Stripped . | . . . . Power Chain Reactions . | . . . . Alert | -11 -10 -9 -8 ------- Run | Yrd Mat Mat Mat Maximum Alert Level 1 | . . 1 1 Low Security (%) 87 | 100 100 67 92 Level 1 12 | . . 32 7 Level 2 . | . . . . Level 3 . | . . . . Level 4 . | . . . . Level 5 . | . . . . High Security . | . . . . Max Security . | . . . . Peak Influence 316 | . 63 247 316 Initial 87 | . . 17 87 Average 90 | . 27 132 90 Influence Increases 1039 | . 83 350 606 Destroy 0b10 Robot/C 620 | . 20 220 380 Destroy 0b10 Robot/NC 35 | . 10 5 20 Destroy Leader 162 | . 12 40 110 Successful Hack 7 | . . 2 5 Disable Machine 30 | . . . 30 Destroy Structure 170 | . 41 83 46 Lose Combat Pursuer 15 | . . . 15 Influence Decreases 749 | . 40 186 523 Entered New Map 146 | . . 26 120 Time Decay 493 | . 40 150 303 Lost Part 110 | . . 10 100 Squads Dispatched 11 | . 1 1 9 Investigation 1 | . . . 1 Extermination . | . . . . Reinforcement 3 | . 1 1 1 Assault . | . . . . Garrison 7 | . . . 7 Intercept . | . . . . Searches Triggered . | . . . . Construction Impeded 1 | . . . 1 Haulers Reinforced . | . . . . Active Scanning Responses . | . . . . Cargo Convoy Interrupts . | . . . . Stealth | -11 -10 -9 -8 --------- Run | Yrd Mat Mat Mat Distress Signals 5 | . . 1 4 Communications Jammed . | . . . . Distress Signals . | . . . . Times Spotted 45 | . 2 14 29 Peak Tracking Total 8 | . 2 4 8 Tactical Retreats 1 | . . . 1 Traps | -11 -10 -9 -8 ------- Run | Yrd Mat Mat Mat Traps Triggered 1 | . . . 1 Indirectly . | . . . . Trap Hack Attempts . | . . . . Triggered . | . . . . Disarmed . | . . . . Reprogrammed . | . . . . Reused . | . . . . Traps Extracted . | . . . . Installed . | . . . . Triggered . | . . . . Machines | -11 -10 -9 -8 ---------- Run | Yrd Mat Mat Mat Machines Disabled 2 | . . . 2 Max in Single Turn 1 | . . . 1 Machines Repaired . | . . . . Machines Dismantled . | . . . . Machines Sabotaged . | . . . . Overloaded Fab Kills . | . . . . Hacking | -11 -10 -9 -8 --------- Run | Yrd Mat Mat Mat Machines Accessed 2 | . . 1 1 Terminals 1 | . . . 1 Fabricators . | . . . . Repair Stations . | . . . . Recycling Units . | . . . . Scanalyzers 1 | . . 1 . Garrison Access . | . . . . Total Hacks 3 | . . 2 1 Successful 3 | . . 2 1 Failed . | . . . . Catastrophic . | . . . . Database Lockouts . | . . . . Manual . | . . . . Terminals 1 | . . . 1 Fabricators . | . . . . Repair Stations . | . . . . Recycling Units . | . . . . Scanalyzers 2 | . . 2 . Garrison Access . | . . . . Terminal Hacks 1 | . . . 1 Transport Status 1 | . . . 1 Fabricator Hacks . | . . . . Repair Station Hacks . | . . . . Recycling Unit Hacks . | . . . . Scanalyzer 2 | . . 2 . Insert Component 1 | . . 1 . Analyze 1 | . . 1 . Garrison Access Hacks . | . . . . Unauthorized Hacks . | . . . . Terminals . | . . . . Fabricators . | . . . . Repair Stations . | . . . . Recycling Units . | . . . . Scanalyzers . | . . . . Garrison Access . | . . . . Data Cores Recovered . | . . . . Used . | . . . . Hacking Detections 2 | . . 1 1 Full Trace Events . | . . . . Feedback Events . | . . . . Feedback Blocked . | . . . . Robot Schematics Acquired . | . . . . Robots Built . | . . . . Authchips . | . . . . Time . | . . . . Total Robot Build Rating . | . . . . Part Schematics Acquired 1 | . . 1 . Parts Built . | . . . . Authchips . | . . . . Time . | . . . . Total Part Build Rating . | . . . . Parts Repaired . | . . . . Time . | . . . . Parts Recycled . | . . . . Recycled Matter . | . . . . Retrieved Matter . | . . . . Retrieved Components . | . . . . Parts Scanalyzed 1 | . . 1 . Part Schematics Acquired 1 | . . 1 . Parts Damaged 1 | . . 1 . Bothacking | -11 -10 -9 -8 ------------ Run | Yrd Mat Mat Mat Used RIF Installer . | . . . . Robots Hacked . | . . . . Non-combat . | . . . . Combat . | . . . . Robot Hacks Applied . | . . . . Relay Couplers Released . | . . . . Fabnet Peak Effective % . | . . . . Robots Rewired . | . . . . Allies Hacked . | . . . . Hacks Repelled . | . . . . Allies | -11 -10 -9 -8 -------- Run | Yrd Mat Mat Mat Total Allies . | . . . . Largest Group . | . . . . Highest-Rated Group . | . . . . Highest-Rated Ally . | . . . . Total Orders . | . . . . Ally Attacks . | . . . . Total Damage . | . . . . Kills . | . . . . Allies Corrupted . | . . . . Allies Melted . | . . . . Intel | -11 -10 -9 -8 ------- Run | Yrd Mat Mat Mat Active Infowar (turns) . | . . . . Robot Analysis Total . | . . . . Derelict Logs Recovered . | . . . . Drone Launches . | . . . . Drone Recoveries . | . . . . Exploration | -11 -10 -9 -8 ------------- Run | Yrd Mat Mat Mat Turns Passed 1298 | 60 118 319 801 Spaces Moved 622 | 37 64 161 360 Core 8 | 8 . . . Treads 614 | 29 64 161 360 Legs . | . . . . Wheels . | . . . . Hover . | . . . . Flight . | . . . . Fastest Speed 50 | 50 160 160 160 Average Speed 158 | 136 160 160 160 Slowest Speed 240 | 160 160 160 240 Overloaded Moves . | . . . . Propulsion Burnouts . | . . . . Robots Hopped . | . . . . Potential Cave-ins . | . . . . Cave-ins Triggered . | . . . . Exploration Rate (%) 17 | 4 20 19 26 Regions Visited 3 Branch Regions . Pre-discovered Areas . | . . . . Known Exits Taken . | . . . . Unknown Exits Taken 3 | 1 1 1 . Scrap Searched . | . . . . Spaces Dug . | . . . . Terrain Destroyed 221 | . 50 110 61 Melee . | . . . . Projectile . | . . . . AOE 221 | . 50 110 61 Terrain Rammed . | . . . . Walls Destroyed . | . . . . Machines Disabled . | . . . . Actions | -11 -10 -9 -8 --------- Run | Yrd Mat Mat Mat Total 822 | 47 75 207 493 Wait 77 | . . 19 58 Move 619 | 36 63 160 360 Hop . | . . . . Pick Up 26 | 6 4 8 8 Fast Attach . | . . . . Attach 17 | 5 2 4 6 Detach 2 | . 1 1 . Swap 11 | . . 4 7 Drop 7 | . 2 1 4 Fire 63 | . 3 10 50 Melee . | . . . . Ram . | . . . . Kick . | . . . . Crush . | . . . . Escape Stasis . | . . . . Rewire . | . . . . Trap . | . . . . Miscellaneous . | . . . . Route ------- -11/Scrapyard -10/Materials -9/Materials -8/Materials History --------- Turn | Location | Event 6 | -11/Scrapyard | Discovered new exit (range 15) 61 | -11/Scrapyard | Entered Materials 137 | -10/Materials | Discovered new exit (range 15) 179 | -10/Materials | Entered another Materials area 179 | -9/Materials | Evolved 2 slots: Power x1, Utility x1 302 | -9/Materials | Build established: Mutant 476 | -9/Materials | Discovered new exit (range 9) 498 | -9/Materials | Entered another Materials area 498 | -8/Materials | Evolved 2 slots: Utility x2 643 | -8/Materials | Garrison activated, responded to threat 965 | -8/Materials | Lost 4 parts (1p1n2u) 1287 | -8/Materials | Garrison activated, responded to threat 1295 | -8/Materials | Core integrity fell below 50% 1299 | -8/Materials | Self-destructed Last Messages --------------- ALERT: Activating Garrison Access M001. T-07 Excavator sends out distress signal. ALERT: Construction progress impeded, dispatching reinforcements to local area. U-05 Engineer builds a Wall. U-05 Engineer lays Concrete. U-05 Engineer builds a Wall. K-01 Serf collects debris. U-05 Engineer destroyed. Electrolysis Chamber disabled. U-05 Engineer lays Concrete. Critical hit (Burn: +37). U-05 Engineer lays Concrete. K-01 Serf collects debris. U-05 Engineer builds a Wall. Imp. Ion Engine destroyed. Critical hit (Burn: +37). R-06 Scavenger collects Lgt. Ion Engine. U-05 Engineer builds a Wall. Shotgun destroyed. Map ----- +----------------------------------------------------+ | ???????????????????????????????????????????????? | | ???????????????????????????????????????????????? | | ???????????????????????????????????????????????? | | ???????????????????????????????????????????????? | | ???????????????????????????????????????????????? | | ???????????????????????????????????????????????? | | ???????????????????????????????????????????????? | | ???????????????????????????????????????????????? | | ???????????????????????????????????????????????? | | ???????????????????????????????????????????????? | | ???????????????????????????????????????????????? | | ???????????????????????????????????????????????? | | ???????????????????????????????????????????????? | | ???????????????????????????????????????????????? | | ???????????????????????????????????????????????? | | ???????????????????????????????????????????????? | | ???????????????????????????????????????????????? | | ???????????????????????????????????????????????? | | ????????????????##########?????????????????????? | | ????????????????# #?????????????????????? | | ????????????????# """ #?????????????????????? | | ????????????????# """ ##??###???????????????? | | ????????????????# ! "" ## #######?????????? | | ????????????????# ???????? | | ????????????????# g ???????? | | ????????????????# @ """ ""??????????? | | ????????????????# """ ?????????????? | | ????????????????# """ ????????????? | | ?????????############% ###*%! ?????????? | | ?????????# # k%* g = Yg ?????????? | | ?????????# # ![ " " !!??????????? | | ?????????# + "G" !!??????????? | | ?????????# # % " !!??????????? | | ?????????# # ????????????? | | ?????????# #r w ???????????? | | ?????????# # #########???????????? | | ?????????# # ???????????????????? | | ?????????## +## # # ???????????????????? | | ?????????# ## # ## # ???????????????????? | | ?????????# ## # ## # ???????????????????? | | ?????????## # ## ## ###?????????????????????? | | ????####### # ##### ###########?????????????? | | ????# # ## #?????????????? | | ????# """"" # ## """ #?????????????? | | ????#/ """"" # # = """ #?????????????? | | ????# """"" # # """ #?????????????? | | ????#= / +! #?????????????? | | ????# # #""" """ #?????????????? | | ????# "Y" ###+## #"R """ #?????????????? | | ????# = """ #????# #""" """ #?????????????? | +----------------------------------------------------+ Best States ------------- Heat Dissipation 41 Energy Generation 17 Energy Capacity 465 Matter Stores 245 Matter Capacity 300 Sight Range 16 Terrain Scan Density 10 Armor Coverage 300 Evasion (%) 50 Recoil Reduction 2 Item Schematics ----------------- Hvy. Assault Rifle | -9/Materials | Scanalyzed Robot Schematics ------------------ None Fabricated ------------ Nothing Repaired ---------- Nothing Alien Tech Used ----------------- None Achievements -------------- None Challenges ------------ None Game ------ Seed ConceptRelayMatrix Manual? 0 Play Time 00:15:10 Cumulative 27.8 hours Start 2025.09.08 @ 23:01:20 End 2025.09.08 @ 23:13:56 Sessions 1 Manual Loads 0 Difficulty Rogue Special Mode None Game No. 53 Rogue 53 Adventurer 0 Explorer 0 Win Type - Total 0 Types 0/0/0/0/0/0/0/0/0/0 Lore% 15 Gallery% 23 Achievement% 20 Wizard Run 0 Options --------- Layout 2 ASCII 0 Keyboard 0 Movement Mouse Keybinds 0 Fullscreen 1 Font 24/Smallcaps Map View 50x44 Zoom Use 0% Tactical HUD 0 Map Filters NONE Filters NONE Steam 1 RUN: 0e586218-1a4c-4add-8600-d5814b086913